[Event "*** Titled Tuesday Blitz"]
[Site "Chess.com"]
[Date "2018.09.04"]
[Round "6"]
[White "NikolaGry"]
[Black "wonderfultime"]
[Result "0-1"]
[WhiteElo "2609"]
[BlackElo "2834"]
[TimeControl "180+2"]
[EndTime "14:53:54 PDT"]
[Termination "wonderfultime won on time"]

1. e4 {[%clk 0:03:01.9]} 1... c5 {[%clk 0:03:01.1]} 2. Nf3 {[%clk 0:02:58.7]}
2... d6 {[%clk 0:03:02]} 3. Bb5+ {[%clk 0:02:58.6]} 3... Nd7 {[%clk 0:03:02.6]}
4. O-O {[%clk 0:02:58.3]} 4... a6 {[%clk 0:03:04]} 5. Bxd7+ {[%clk 0:02:58.1]}
5... Bxd7 {[%clk 0:03:05.9]} 6. c3 {[%clk 0:02:59.2]} 6... Nf6 {[%clk
0:03:06.3]} 7. Re1 {[%clk 0:02:57.6]} 7... e6 {[%clk 0:03:01.8]} 8. d3 {[%clk
0:02:49.3]} 8... Be7 {[%clk 0:03:02.9]} 9. Nbd2 {[%clk 0:02:49.6]} 9... O-O
{[%clk 0:03:04]} 10. Nf1 {[%clk 0:02:50.5]} 10... b5 {[%clk 0:02:59.9]} 11. Ng3
{[%clk 0:02:51.2]} 11... Bc6 {[%clk 0:02:54.6]} 12. Bg5 {[%clk 0:02:45.7]} 12...
h6 {[%clk 0:02:54.1]} 13. Bxf6 {[%clk 0:02:44.7]} 13... Bxf6 {[%clk 0:02:56]}
14. d4 {[%clk 0:02:45.9]} 14... cxd4 {[%clk 0:02:55.6]} 15. cxd4 {[%clk
0:02:43.9]} 15... Bb7 {[%clk 0:02:57]} 16. Rc1 {[%clk 0:02:37.8]} 16... Rc8
{[%clk 0:02:58]} 17. Qd2 {[%clk 0:02:24]} 17... Qb6 {[%clk 0:02:58.5]} 18. Nh5
{[%clk 0:01:33.5]} 18... Be7 {[%clk 0:02:53.8]} 19. Qf4 {[%clk 0:01:03.8]} 19...
Rxc1 {[%clk 0:02:32.9]} 20. Rxc1 {[%clk 0:01:02.7]} 20... Rc8 {[%clk 0:02:34.5]}
21. Re1 {[%clk 0:00:38.1]} 21... Qd8 {[%clk 0:02:27.5]} 22. h4 {[%clk
0:00:35.9]} 22... Rc2 {[%clk 0:02:22.1]} 23. d5 {[%clk 0:00:34.1]} 23... e5
{[%clk 0:02:13.1]} 24. Qe3 {[%clk 0:00:14.7]} 24... Bc8 {[%clk 0:01:27.9]} 25.
Rc1 {[%clk 0:00:13.5]} 25... Qc7 {[%clk 0:01:07.4]} 26. Rxc2 {[%clk 0:00:12.1]}
26... Qxc2 {[%clk 0:01:09.3]} 27. Ng3 {[%clk 0:00:11.3]} 27... Bf8 {[%clk
0:01:02.5]} 28. Qa7 {[%clk 0:00:11.4]} 28... Bg4 {[%clk 0:01:00]} 29. Qb8 {[%clk
0:00:09.1]} 29... Qd1+ {[%clk 0:01:00]} 30. Kh2 {[%clk 0:00:09.7]} 30... Bxf3
{[%clk 0:01:01.1]} 31. gxf3 {[%clk 0:00:10.6]} 31... Qxf3 {[%clk 0:01:03]} 32.
Kg1 {[%clk 0:00:11.8]} 32... g6 {[%clk 0:01:01.7]} 33. h5 {[%clk 0:00:12.7]}
33... gxh5 {[%clk 0:00:50.7]} 34. Qc8 {[%clk 0:00:12.7]} 34... Qg4 {[%clk
0:00:44.8]} 35. Qxg4+ {[%clk 0:00:07.6]} 35... hxg4 {[%clk 0:00:46.7]} 36. Nh5
{[%clk 0:00:08.7]} 36... Be7 {[%clk 0:00:46.2]} 37. Kg2 {[%clk 0:00:08.8]} 37...
Bh4 {[%clk 0:00:47.4]} 38. f3 {[%clk 0:00:09.8]} 38... g3 {[%clk 0:00:41.6]} 39.
b4 {[%clk 0:00:07.1]} 39... Kh7 {[%clk 0:00:42.3]} 0-1

[Event "*** Titled Tuesday Blitz"]
[Site "Chess.com"]
[Date "2018.09.04"]
[Round "6"]
[White "nihalsarin"]
[Black "GMBenjaminBok"]
[Result "1-0"]
[WhiteElo "2863"]
[BlackElo "2652"]
[TimeControl "180+2"]
[EndTime "14:53:56 PDT"]
[Termination "nihalsarin won by resignation"]

1. e4 {[%clk 0:03:01.9]} 1... c5 {[%clk 0:03:00.4]} 2. Nc3 {[%clk 0:02:59.4]}
2... d6 {[%clk 0:02:59]} 3. d4 {[%clk 0:02:55.5]} 3... cxd4 {[%clk 0:02:59.2]}
4. Qxd4 {[%clk 0:02:57.4]} 4... Nc6 {[%clk 0:03:00.4]} 5. Qd2 {[%clk 0:02:58.9]}
5... g6 {[%clk 0:03:01.9]} 6. b3 {[%clk 0:03:00.2]} 6... Bh6 {[%clk 0:02:59.8]}
7. f4 {[%clk 0:03:01]} 7... Nf6 {[%clk 0:02:57.9]} 8. Bb2 {[%clk 0:03:01.3]}
8... O-O {[%clk 0:02:56.4]} 9. O-O-O {[%clk 0:03:02]} 9... e5 {[%clk 0:02:49.9]}
10. g3 {[%clk 0:03:01.7]} 10... Bg4 {[%clk 0:02:47.4]} 11. Be2 {[%clk
0:02:56.7]} 11... exf4 {[%clk 0:02:48.1]} 12. gxf4 {[%clk 0:02:50.1]} 12... Re8
{[%clk 0:02:42.7]} 13. Bxg4 {[%clk 0:02:28.1]} 13... Nxg4 {[%clk 0:02:44.6]} 14.
Nd5 {[%clk 0:02:29.6]} 14... Rxe4 {[%clk 0:01:46.1]} 15. Kb1 {[%clk 0:01:22.9]}
15... Bg7 {[%clk 0:01:33.8]} 16. Bxg7 {[%clk 0:00:37.6]} 16... Kxg7 {[%clk
0:01:35.7]} 17. Nf3 {[%clk 0:00:39.2]} 17... Nf6 {[%clk 0:01:16.8]} 18. Qc3
{[%clk 0:00:35.6]} 18... Rc8 {[%clk 0:01:17]} 19. Ng5 {[%clk 0:00:29.9]} 19...
Re2 {[%clk 0:00:27.8]} 20. Qh3 {[%clk 0:00:10.3]} 20... h6 {[%clk 0:00:16.1]}
21. Nxf6 {[%clk 0:00:11.6]} 21... Qxf6 {[%clk 0:00:15.2]} 22. Qxc8 {[%clk
0:00:13.2]} 22... hxg5 {[%clk 0:00:13.6]} 23. Qg4 {[%clk 0:00:14.2]} 23... Rf2
{[%clk 0:00:10.7]} 24. fxg5 {[%clk 0:00:15.1]} 24... Qc3 {[%clk 0:00:11.2]} 25.
Qc4 {[%clk 0:00:16.4]} 25... Qxc4 {[%clk 0:00:10.1]} 26. bxc4 {[%clk 0:00:18.3]}
26... Ne5 {[%clk 0:00:11.6]} 27. Rxd6 {[%clk 0:00:17.8]} 27... Nxc4 {[%clk
0:00:12.4]} 28. Rd7 {[%clk 0:00:19.3]} 28... Na3+ {[%clk 0:00:12.9]} 29. Kb2
{[%clk 0:00:20.8]} 29... Nxc2 {[%clk 0:00:14]} 30. Rxb7 {[%clk 0:00:22.3]} 30...
Nd4+ {[%clk 0:00:14.2]} 31. Kc3 {[%clk 0:00:23]} 31... Ne6 {[%clk 0:00:13.4]}
32. h4 {[%clk 0:00:24]} 32... Rf3+ {[%clk 0:00:09]} 33. Kd2 {[%clk 0:00:25]}
33... Nc5 {[%clk 0:00:07.8]} 34. Rxa7 {[%clk 0:00:24.7]} 34... Ne4+ {[%clk
0:00:07.7]} 35. Ke2 {[%clk 0:00:26.2]} 35... Rc3 {[%clk 0:00:06.4]} 36. Rd1
{[%clk 0:00:25.2]} 36... Rh3 {[%clk 0:00:03.2]} 37. Rdd7 {[%clk 0:00:25.1]}
37... Rxh4 {[%clk 0:00:03]} 38. Rxf7+ {[%clk 0:00:25.9]} 38... Kg8 {[%clk
0:00:04.6]} 39. Rfb7 {[%clk 0:00:26.7]} 1-0

[Event "*** Titled Tuesday Blitz"]
[Site "Chess.com"]
[Date "2018.09.04"]
[Round "6"]
[White "BigAl"]
[Black "OglazaOskar2005"]
[Result "0-1"]
[WhiteElo "2081"]
[BlackElo "2306"]
[TimeControl "180+2"]
[EndTime "14:54:03 PDT"]
[Termination "OglazaOskar2005 won by resignation"]

1. e4 {[%clk 0:03:01.8]} 1... c5 {[%clk 0:02:59.5]} 2. Nc3 {[%clk 0:03:02.9]}
2... a6 {[%clk 0:02:59]} 3. g3 {[%clk 0:03:04]} 3... b5 {[%clk 0:02:59.1]} 4.
Bg2 {[%clk 0:03:05.9]} 4... Bb7 {[%clk 0:02:55.2]} 5. d3 {[%clk 0:03:07]} 5...
e6 {[%clk 0:02:52.4]} 6. Nf3 {[%clk 0:03:08.1]} 6... g6 {[%clk 0:02:49.3]} 7.
O-O {[%clk 0:03:04.5]} 7... Bg7 {[%clk 0:02:50.4]} 8. e5 {[%clk 0:02:57.5]} 8...
Qc7 {[%clk 0:02:45.2]} 9. Bf4 {[%clk 0:02:53.2]} 9... Ne7 {[%clk 0:02:46.2]} 10.
Ne4 {[%clk 0:02:53.8]} 10... Bxe4 {[%clk 0:02:46.3]} 11. dxe4 {[%clk 0:02:55.3]}
11... Nbc6 {[%clk 0:02:46.2]} 12. Qd6 {[%clk 0:02:53.8]} 12... Rc8 {[%clk
0:02:47]} 13. Qxc5 {[%clk 0:02:53.3]} 13... h6 {[%clk 0:02:40.4]} 14. h4 {[%clk
0:02:52.8]} 14... O-O {[%clk 0:02:38.8]} 15. Rad1 {[%clk 0:02:47.4]} 15... Qb7
{[%clk 0:02:35.3]} 16. Qe3 {[%clk 0:02:37.1]} 16... Kh7 {[%clk 0:02:36]} 17. Rd6
{[%clk 0:02:34.4]} 17... Rc7 {[%clk 0:02:34.4]} 18. Rfd1 {[%clk 0:02:27.6]}
18... Nc8 {[%clk 0:02:35.2]} 19. R6d2 {[%clk 0:02:24.9]} 19... Nb6 {[%clk
0:02:36.2]} 20. b3 {[%clk 0:02:25]} 20... Rfc8 {[%clk 0:02:33.9]} 21. g4 {[%clk
0:02:13.4]} 21... Nb4 {[%clk 0:02:33.7]} 22. h5 {[%clk 0:01:54.9]} 22... g5
{[%clk 0:02:33.4]} 23. Bxg5 {[%clk 0:01:54.3]} 23... hxg5 {[%clk 0:02:32.7]} 24.
Nxg5+ {[%clk 0:01:55.5]} 24... Kg8 {[%clk 0:02:31.8]} 25. Qf4 {[%clk 0:01:55.6]}
25... d5 {[%clk 0:02:21.6]} 26. exd6 {[%clk 0:01:53.7]} 26... Rd7 {[%clk
0:02:18.9]} 27. e5 {[%clk 0:01:52.4]} 27... N4d5 {[%clk 0:02:19.8]} 28. Qe4
{[%clk 0:01:53.4]} 28... Kf8 {[%clk 0:01:59.8]} 29. Qh7 {[%clk 0:01:54.3]} 29...
Bxe5 {[%clk 0:01:19.8]} 30. f4 {[%clk 0:01:34.6]} 30... Bxd6 {[%clk 0:01:07.8]}
31. Re2 {[%clk 0:01:19.4]} 31... Bxf4 {[%clk 0:00:47.8]} 32. Bxd5 {[%clk
0:01:00.8]} 32... Nxd5 {[%clk 0:00:42.6]} 33. Rxd5 {[%clk 0:00:54.6]} 33... Qxd5
{[%clk 0:00:37.8]} 34. Ne4 {[%clk 0:00:21.4]} 34... Be5 {[%clk 0:00:28.7]} 35.
g5 {[%clk 0:00:16.9]} 35... Rxc2 {[%clk 0:00:28.5]} 0-1

[Event "*** Titled Tuesday Blitz"]
[Site "Chess.com"]
[Date "2018.09.04"]
[Round "6"]
[White "mjray79"]
[Black "julinha97"]
[Result "0-1"]
[WhiteElo "2032"]
[BlackElo "2156"]
[TimeControl "180+2"]
[EndTime "14:54:09 PDT"]
[Termination "julinha97 won on time"]

1. d4 {[%clk 0:03:01.9]} 1... Nf6 {[%clk 0:03:00.4]} 2. c4 {[%clk 0:03:01.9]}
2... g6 {[%clk 0:03:01.8]} 3. Nc3 {[%clk 0:03:01.1]} 3... Bg7 {[%clk 0:03:03.3]}
4. e4 {[%clk 0:03:01]} 4... d6 {[%clk 0:03:04.2]} 5. Nge2 {[%clk 0:03:01.1]}
5... O-O {[%clk 0:03:04.9]} 6. Ng3 {[%clk 0:03:00.1]} 6... c5 {[%clk 0:03:05.8]}
7. d5 {[%clk 0:03:00.1]} 7... e6 {[%clk 0:03:06.3]} 8. Be2 {[%clk 0:02:56.1]}
8... exd5 {[%clk 0:03:07.4]} 9. exd5 {[%clk 0:02:55.9]} 9... Re8 {[%clk
0:03:04.4]} 10. Bf4 {[%clk 0:02:56.3]} 10... a6 {[%clk 0:03:04.1]} 11. O-O
{[%clk 0:02:55.3]} 11... h5 {[%clk 0:02:56.8]} 12. Bg5 {[%clk 0:02:44.9]} 12...
Qc7 {[%clk 0:02:48.2]} 13. Qd2 {[%clk 0:02:35.6]} 13... Nbd7 {[%clk 0:02:43.8]}
14. Bh6 {[%clk 0:02:29.9]} 14... Bh8 {[%clk 0:02:40.2]} 15. Qg5 {[%clk
0:02:23.1]} 15... Nh7 {[%clk 0:02:34.1]} 16. Qh4 {[%clk 0:02:08.4]} 16... Bf6
{[%clk 0:02:23.8]} 17. Qf4 {[%clk 0:01:59]} 17... Be5 {[%clk 0:02:12.8]} 18. Qd2
{[%clk 0:01:53.6]} 18... Ndf6 {[%clk 0:02:10.9]} 19. Rfe1 {[%clk 0:01:23]} 19...
Bg4 {[%clk 0:02:03.2]} 20. Bxg4 {[%clk 0:01:06.8]} 20... Nxg4 {[%clk 0:02:03.3]}
21. Nge4 {[%clk 0:01:02.1]} 21... Bxh2+ {[%clk 0:01:58.9]} 22. Kh1 {[%clk
0:00:59.5]} 22... Be5 {[%clk 0:01:51.6]} 23. f4 {[%clk 0:00:46.4]} 23... Bd4
{[%clk 0:01:52.2]} 24. Bg5 {[%clk 0:00:34.3]} 24... Nxg5 {[%clk 0:01:37.6]} 25.
fxg5 {[%clk 0:00:34.1]} 25... Qd7 {[%clk 0:01:21.3]} 26. Rf1 {[%clk 0:00:30.2]}
26... Kg7 {[%clk 0:01:18.5]} 27. Qf4 {[%clk 0:00:21.5]} 27... Be3 {[%clk
0:01:11.3]} 28. Qxd6 {[%clk 0:00:19.2]} 28... Nf2+ {[%clk 0:01:04.2]} 29. Rxf2
{[%clk 0:00:16.2]} 29... Qxd6 {[%clk 0:01:05.1]} 30. Rxf7+ {[%clk 0:00:15.8]}
30... Kxf7 {[%clk 0:01:03.5]} 31. Nxd6+ {[%clk 0:00:16.5]} 31... Kg7 {[%clk
0:01:04.9]} 32. Nxe8+ {[%clk 0:00:17.2]} 32... Rxe8 {[%clk 0:01:06.8]} 33. Re1
{[%clk 0:00:17.1]} 33... Re5 {[%clk 0:01:00.4]} 34. Nd1 {[%clk 0:00:15.5]} 34...
Bd4 {[%clk 0:01:00.9]} 35. Rxe5 {[%clk 0:00:15.6]} 35... Bxe5 {[%clk 0:01:02.8]}
36. Kg1 {[%clk 0:00:12.8]} 36... Bf4 {[%clk 0:01:02.2]} 37. Kf2 {[%clk
0:00:13.4]} 37... Bxg5 {[%clk 0:01:03.4]} 38. Nc3 {[%clk 0:00:13.8]} 38... Bf6
{[%clk 0:00:59.1]} 39. Na4 {[%clk 0:00:14.5]} 39... b5 {[%clk 0:00:58.7]} 40.
Nc3 {[%clk 0:00:10.5]} 40... bxc4 {[%clk 0:00:59.5]} 41. Ne4 {[%clk 0:00:10.4]}
41... Bxb2 {[%clk 0:00:59.3]} 42. d6 {[%clk 0:00:09.2]} 42... Kf7 {[%clk
0:00:55.4]} 43. Ke2 {[%clk 0:00:09.8]} 43... Bd4 {[%clk 0:00:53.6]} 44. Nd2
{[%clk 0:00:08]} 44... c3 {[%clk 0:00:52.8]} 45. Nc4 {[%clk 0:00:07.9]} 45...
Ke6 {[%clk 0:00:53.5]} 46. Kd3 {[%clk 0:00:08.1]} 46... Bf6 {[%clk 0:00:53.8]}
47. a4 {[%clk 0:00:04.6]} 47... g5 {[%clk 0:00:53.3]} 48. a5 {[%clk 0:00:03]}
48... h4 {[%clk 0:00:52.4]} 0-1

[Event "*** Titled Tuesday Blitz"]
[Site "Chess.com"]
[Date "2018.09.04"]
[Round "6"]
[White "oskariot"]
[Black "VerdeNotte"]
[Result "0-1"]
[WhiteElo "2488"]
[BlackElo "2826"]
[TimeControl "180+2"]
[EndTime "14:54:29 PDT"]
[Termination "VerdeNotte won on time"]

1. c4 {[%clk 0:02:41.8]} 1... g6 {[%clk 0:02:56.8]} 2. g3 {[%clk 0:02:40]} 2...
Bg7 {[%clk 0:02:57.9]} 3. Bg2 {[%clk 0:02:41.4]} 3... c5 {[%clk 0:02:59.2]} 4.
Nc3 {[%clk 0:02:42]} 4... Nc6 {[%clk 0:03:00.4]} 5. e3 {[%clk 0:02:41.4]} 5...
d6 {[%clk 0:03:01.1]} 6. Nge2 {[%clk 0:02:41.6]} 6... e5 {[%clk 0:03:00.7]} 7.
O-O {[%clk 0:02:41.4]} 7... Nge7 {[%clk 0:03:01.5]} 8. Nd5 {[%clk 0:02:22.9]}
8... h5 {[%clk 0:02:53.4]} 9. Nec3 {[%clk 0:02:06.4]} 9... h4 {[%clk 0:02:50.5]}
10. d3 {[%clk 0:02:06.7]} 10... Rb8 {[%clk 0:02:36.4]} 11. a3 {[%clk 0:01:44.3]}
11... Nxd5 {[%clk 0:02:30.7]} 12. Nxd5 {[%clk 0:01:44.7]} 12... Ne7 {[%clk
0:02:29.1]} 13. b4 {[%clk 0:01:19.4]} 13... Nxd5 {[%clk 0:02:27.6]} 14. cxd5
{[%clk 0:01:21.3]} 14... b6 {[%clk 0:02:25]} 15. Rb1 {[%clk 0:01:13.7]} 15...
hxg3 {[%clk 0:02:23.9]} 16. hxg3 {[%clk 0:01:14.4]} 16... Bf5 {[%clk 0:02:06]}
17. e4 {[%clk 0:00:49]} 17... Bd7 {[%clk 0:02:02.1]} 18. Be3 {[%clk 0:00:42.8]}
18... Bh6 {[%clk 0:01:50]} 19. Bxh6 {[%clk 0:00:39.5]} 19... Rxh6 {[%clk
0:01:50.5]} 20. bxc5 {[%clk 0:00:40.4]} 20... bxc5 {[%clk 0:01:50.8]} 21. Qd2
{[%clk 0:00:27.8]} 21... Rh8 {[%clk 0:01:51.2]} 22. Rxb8 {[%clk 0:00:25.2]}
22... Qxb8 {[%clk 0:01:51.7]} 23. f4 {[%clk 0:00:21.6]} 23... Qb6 {[%clk
0:01:46.3]} 24. fxe5 {[%clk 0:00:18.8]} 24... dxe5 {[%clk 0:01:46.6]} 25. Qf2
{[%clk 0:00:19.5]} 25... f5 {[%clk 0:01:41.4]} 26. exf5 {[%clk 0:00:17.8]} 26...
gxf5 {[%clk 0:01:32.5]} 27. Re1 {[%clk 0:00:15.5]} 27... Qd6 {[%clk 0:01:19.3]}
28. Qf4 {[%clk 0:00:11.4]} 28... Kd8 {[%clk 0:01:15.8]} 29. Rxe5 {[%clk
0:00:07.1]} 29... Kc7 {[%clk 0:01:11.5]} 30. d4 {[%clk 0:00:08.2]} 30... c4
{[%clk 0:00:43.1]} 31. Qc1 {[%clk 0:00:08.9]} 31... Bb5 {[%clk 0:00:44.3]} 32.
Qc3 {[%clk 0:00:09.8]} 32... Kb8 {[%clk 0:00:30.4]} 33. Re6 {[%clk 0:00:10.3]}
33... Qd7 {[%clk 0:00:25.8]} 34. Qb4 {[%clk 0:00:08.2]} 34... c3 {[%clk
0:00:19.4]} 35. Re7 {[%clk 0:00:04.4]} 35... c2 {[%clk 0:00:17.3]} 36. Qc5
{[%clk 0:00:03.8]} 36... Qxe7 {[%clk 0:00:11.3]} 37. Qxb5+ {[%clk 0:00:03.9]}
37... Qb7 {[%clk 0:00:12]} 38. Qc5 {[%clk 0:00:03.9]} 38... Qb1+ {[%clk
0:00:12.9]} 39. Bf1 {[%clk 0:00:03.7]} 39... c1=Q {[%clk 0:00:13.6]} 0-1

[Event "*** Titled Tuesday Blitz"]
[Site "Chess.com"]
[Date "2018.09.04"]
[Round "6"]
[White "Divertissement"]
[Black "ChainsOfFantasia"]
[Result "1-0"]
[WhiteElo "2536"]
[BlackElo "2373"]
[TimeControl "180+2"]
[EndTime "14:54:42 PDT"]
[Termination "Divertissement won by resignation"]

1. e4 {[%clk 0:03:00.1]} 1... c6 {[%clk 0:02:56.2]} 2. d4 {[%clk 0:03:00.2]}
2... d5 {[%clk 0:02:58.1]} 3. e5 {[%clk 0:03:01.5]} 3... c5 {[%clk 0:02:56.5]}
4. dxc5 {[%clk 0:02:58.4]} 4... e6 {[%clk 0:02:54.4]} 5. a3 {[%clk 0:02:59.2]}
5... Bxc5 {[%clk 0:02:55.1]} 6. Qg4 {[%clk 0:02:59.9]} 6... Ne7 {[%clk
0:02:54.9]} 7. Qxg7 {[%clk 0:02:49.4]} 7... Rg8 {[%clk 0:02:55.5]} 8. Qxh7
{[%clk 0:02:50.9]} 8... Qb6 {[%clk 0:02:45.3]} 9. Nh3 {[%clk 0:02:51.1]} 9...
Bd4 {[%clk 0:02:41.3]} 10. c3 {[%clk 0:02:37.4]} 10... Bxe5 {[%clk 0:02:41.1]}
11. Nd2 {[%clk 0:02:34.6]} 11... Nbc6 {[%clk 0:02:41.3]} 12. Nf3 {[%clk
0:02:34.5]} 12... Bf6 {[%clk 0:02:38.4]} 13. Nf4 {[%clk 0:02:15.6]} 13... e5
{[%clk 0:01:57.2]} 14. Nh5 {[%clk 0:02:11.2]} 14... Bh8 {[%clk 0:01:57.9]} 15.
Ng5 {[%clk 0:01:41.7]} 15... Bf5 {[%clk 0:01:56.8]} 16. Qxf7+ {[%clk 0:01:41.3]}
16... Kd7 {[%clk 0:01:57.8]} 17. Nf6+ {[%clk 0:00:44]} 17... Bxf6 {[%clk
0:01:56.9]} 18. Qxf6 {[%clk 0:00:45.9]} 18... Raf8 {[%clk 0:01:57.4]} 19. Qh6
{[%clk 0:00:45.7]} 19... Rh8 {[%clk 0:01:41.2]} 20. Qg7 {[%clk 0:00:40]} 20...
Rfg8 {[%clk 0:01:26.5]} 21. Qf6 {[%clk 0:00:31.2]} 21... Rg6 {[%clk 0:01:23.6]}
22. Qxh8 {[%clk 0:00:31.8]} 22... Na5 {[%clk 0:01:03.9]} 23. Nf7 {[%clk
0:00:23.2]} 23... Nec6 {[%clk 0:00:52.7]} 24. Qh5 {[%clk 0:00:09.4]} 24... Rf6
{[%clk 0:00:45]} 25. Be2 {[%clk 0:00:05]} 25... Nb3 {[%clk 0:00:41.6]} 26. O-O
{[%clk 0:00:05.4]} 26... Bg6 {[%clk 0:00:33.1]} 27. Qg4+ {[%clk 0:00:05.5]}
27... Bf5 {[%clk 0:00:34.1]} 28. Qg8 {[%clk 0:00:06.9]} 28... Be6 {[%clk
0:00:32.5]} 29. Bg4 {[%clk 0:00:08.3]} 29... Nxa1 {[%clk 0:00:28.2]} 30. Be3
{[%clk 0:00:09.8]} 30... d4 {[%clk 0:00:28.1]} 31. cxd4 {[%clk 0:00:10.6]} 31...
exd4 {[%clk 0:00:29.3]} 32. Bg5 {[%clk 0:00:11.6]} 32... Ne7 {[%clk 0:00:17.7]}
33. Ne5+ {[%clk 0:00:10.5]} 33... Kd6 {[%clk 0:00:18.1]} 34. Qg7 {[%clk
0:00:10.6]} 34... Bxg4 {[%clk 0:00:08.9]} 35. Qxf6+ {[%clk 0:00:11.5]} 35... Be6
{[%clk 0:00:10.2]} 36. Nf7+ {[%clk 0:00:11]} 36... Kd5 {[%clk 0:00:09.2]} 37.
Qxe7 {[%clk 0:00:10.8]} 37... Nc2 {[%clk 0:00:09.7]} 38. Nd8 {[%clk 0:00:10.6]}
38... Bg4 {[%clk 0:00:08.2]} 39. Bf4 {[%clk 0:00:09.9]} 39... Kc4 {[%clk
0:00:08.6]} 40. Nf7 {[%clk 0:00:10]} 40... d3 {[%clk 0:00:07.9]} 41. Ne5+ {[%clk
0:00:11.2]} 41... Kb3 {[%clk 0:00:08.2]} 42. Nxg4 {[%clk 0:00:12.7]} 42... d2
{[%clk 0:00:09.4]} 43. Bxd2 {[%clk 0:00:13.4]} 43... Nd4 {[%clk 0:00:10.7]} 44.
Qe3+ {[%clk 0:00:12.7]} 44... Ka2 {[%clk 0:00:10]} 45. Ne5 {[%clk 0:00:13.7]}
45... Qc5 {[%clk 0:00:10.4]} 46. Nd3 {[%clk 0:00:14.4]} 46... Qd5 {[%clk
0:00:10.4]} 47. Nb4+ {[%clk 0:00:15.8]} 1-0

[Event "*** Titled Tuesday Blitz"]
[Site "Chess.com"]
[Date "2018.09.04"]
[Round "6"]
[White "arna"]
[Black "chito89"]
[Result "1-0"]
[WhiteElo "2093"]
[BlackElo "2663"]
[TimeControl "180+2"]
[EndTime "14:54:51 PDT"]
[Termination "arna won on time"]

1. e4 {[%clk 0:03:00.6]} 1... e5 {[%clk 0:03:00.4]} 2. Nf3 {[%clk 0:03:00.6]}
2... Nc6 {[%clk 0:03:01.2]} 3. Nc3 {[%clk 0:03:02.1]} 3... Bc5 {[%clk
0:03:01.6]} 4. Nxe5 {[%clk 0:03:01.6]} 4... Nxe5 {[%clk 0:02:47.2]} 5. d4 {[%clk
0:03:01.8]} 5... Bd6 {[%clk 0:02:36.9]} 6. dxe5 {[%clk 0:02:57.7]} 6... Bxe5
{[%clk 0:02:38]} 7. Bd3 {[%clk 0:02:45.5]} 7... d6 {[%clk 0:02:38.5]} 8. O-O
{[%clk 0:02:45]} 8... Ne7 {[%clk 0:02:38.8]} 9. Be3 {[%clk 0:02:39.7]} 9... Be6
{[%clk 0:02:38.6]} 10. f4 {[%clk 0:02:36.9]} 10... Bf6 {[%clk 0:02:39.6]} 11. f5
{[%clk 0:02:12.4]} 11... Bd7 {[%clk 0:02:39.9]} 12. Ne2 {[%clk 0:02:07.7]} 12...
b6 {[%clk 0:02:19.3]} 13. c3 {[%clk 0:02:03.6]} 13... d5 {[%clk 0:02:02.6]} 14.
Qc2 {[%clk 0:01:41.1]} 14... c5 {[%clk 0:01:45.8]} 15. exd5 {[%clk 0:01:20.2]}
15... Nxd5 {[%clk 0:01:40.8]} 16. Bf2 {[%clk 0:01:18]} 16... Bc6 {[%clk
0:00:52.4]} 17. Be4 {[%clk 0:01:01.7]} 17... Qe7 {[%clk 0:00:44.1]} 18. Rad1
{[%clk 0:00:52.5]} 18... Nb4 {[%clk 0:00:44.5]} 19. Bxc6+ {[%clk 0:00:49]} 19...
Nxc6 {[%clk 0:00:44.7]} 20. Qa4 {[%clk 0:00:44.1]} 20... O-O {[%clk 0:00:44.5]}
21. Nf4 {[%clk 0:00:36]} 21... Qb7 {[%clk 0:00:37.2]} 22. Nd5 {[%clk 0:00:24.7]}
22... Be5 {[%clk 0:00:37.6]} 23. Qxc6 {[%clk 0:00:21.6]} 23... Qb8 {[%clk
0:00:19.2]} 24. Bg3 {[%clk 0:00:11]} 24... Bxg3 {[%clk 0:00:18.4]} 25. hxg3
{[%clk 0:00:11.9]} 25... Qxg3 {[%clk 0:00:19.2]} 26. Qc7 {[%clk 0:00:10.5]}
26... Qg5 {[%clk 0:00:13.5]} 27. Qf4 {[%clk 0:00:09]} 27... Qxf4 {[%clk
0:00:07.2]} 28. Rxf4 {[%clk 0:00:08.1]} 28... f6 {[%clk 0:00:06.5]} 29. Nc7
{[%clk 0:00:07.3]} 29... Rac8 {[%clk 0:00:05.5]} 30. Rd7 {[%clk 0:00:06.2]}
30... Rfd8 {[%clk 0:00:06.4]} 31. Rxd8+ {[%clk 0:00:04.9]} 31... Rxd8 {[%clk
0:00:07.6]} 32. Ne6 {[%clk 0:00:06.6]} 32... Rd1+ {[%clk 0:00:07.6]} 33. Rf1
{[%clk 0:00:07.7]} 33... Rd2 {[%clk 0:00:08.2]} 34. Rf2 {[%clk 0:00:09.1]} 34...
Rd1+ {[%clk 0:00:09.2]} 35. Kh2 {[%clk 0:00:10.7]} 35... Kf7 {[%clk 0:00:08.5]}
36. Re2 {[%clk 0:00:08.4]} 36... Rf1 {[%clk 0:00:07.4]} 37. g4 {[%clk
0:00:08.6]} 37... h5 {[%clk 0:00:07.7]} 38. Nd8+ {[%clk 0:00:07.8]} 38... Kf8
{[%clk 0:00:05]} 39. Kh3 {[%clk 0:00:03.9]} 39... hxg4+ {[%clk 0:00:05.3]} 40.
Kxg4 {[%clk 0:00:04.9]} 40... Rg1+ {[%clk 0:00:06.1]} 41. Kf4 {[%clk 0:00:06.4]}
41... Rf1+ {[%clk 0:00:07.1]} 42. Ke4 {[%clk 0:00:07.9]} 42... Ke8 {[%clk
0:00:06]} 43. Ne6 {[%clk 0:00:07.4]} 43... Kf7 {[%clk 0:00:06.5]} 44. Nf4 {[%clk
0:00:07.8]} 44... Ra1 {[%clk 0:00:02.7]} 45. Ng6 {[%clk 0:00:07.5]} 45... Rxa2
{[%clk 0:00:03.1]} 46. Kd5 {[%clk 0:00:07.2]} 46... Kg8 {[%clk 0:00:02.6]} 47.
Rh2 {[%clk 0:00:06.9]} 47... Kf7 {[%clk 0:00:02.8]} 48. Rh8 {[%clk 0:00:06.7]}
1-0